[Event "Kragero Resort B 2020"]
[Site "Kragero"]
[Date "2020.02.20"]
[Round "4.5"]
[White "Strand, Amund Pihl"]
[Black "Aasen, Joakim"]
[Result "1/2-1/2"]
[ECO "D04"]
[WhiteElo "1806"]
[BlackElo "1745"]
[Annotator "NA RC"]
[PlyCount "89"]
[EventDate "2020.02.19"]
[EventType "swiss"]
[EventCountry "NOR"]
[SourceTitle "playchess.com"]
[Source "ChessBase"]
[SourceQuality "1"]
[TimeControl "5400+30"]

1. d4 {[%emt 0:00:00]} Nf6 {[%emt 0:00:00]} 2. Nf3 {[%emt 0:00:00]} c5 {[%emt 0:00:00]} 3. e3 {[%emt 0:00:01]} g6 {[%emt 0:00:50]} 4. Bd3 {[%emt 0:01:16]} Bg7 {[%emt 0:00:11]} 5. b3 {[%emt 0:00:17]} cxd4 {[%emt 0:00:14]} 6. exd4 {[%emt 0:02:54]} d5 {[%emt 0:00:15]} 7. Bb2 {[%emt 0:05:19]} O-O {[%emt 0:00:22]} 8. Nbd2 {[%emt 0:01:57]} Nc6 {[%emt 0:00:43]} 9. a3 {[%emt 0:00:29]} Re8 {[%emt 0:00:33]} 10. O-O {[%emt 0:00:47]} Bf5 {[%emt 0:02:14]} 11. Qe2 {[%emt 0:01:49]} Qc7 {[%emt 0:01:25]} 12. Ne5 {[%emt 0:01:19]} Bxd3 {[%emt 0:03:26]} 13. Nxd3 {[%emt 0:02:32]} Rad8 {[%emt 0:00:41]} 14. h3 {[%emt 0:12:05]} Ne4 {[%emt 0:04:59]} 15. Nf3 {[%emt 0:04:55]} e6 {[%emt 0:02:46]} 16. Rac1 {[%emt 0:15:39]} f5 {[%emt 0:01:40]} 17. Nde5 {[%emt 0:04:33]} Qb6 {[%emt 0:02:55]} 18. Nxc6 {[%emt 0:07:12]} bxc6 {[%emt 0:01:26]} 19. Qd3 {[%emt 0:04:07]} Rb8 {[%emt 0:02:24]} 20. Rfe1 {[%emt 0:03:39]} a5 {[%emt 0:02:14]} 21. Re2 {[%emt 0:03:39]} a4 {[%emt 0:03:40]} 22. b4 {[%emt 0:01:35]} Qb5 {[%emt 0:03:18]} 23. c4 {[%emt 0:01:14]} Qa6 {[%emt 0:01:04]} 24. Ne5 {[%emt 0:01:02]} Bxe5 {[%emt 0:05:40]} 25. dxe5 {[%emt 0:00:19]} c5 {[%emt 0:01:09]} 26. Qe3 {[%emt 0:12:04]} cxb4 {[%emt 0:02:48]} 27. cxd5 {[%emt 0:00:55]} bxa3 {[%emt 0:00:40]} 28. Bd4 {[%emt 0:08:35]} Rb3 {[%emt 0:00:51]} 29. Qh6 {[%emt 0:00:21]} Nc3 {[%emt 0:09:33]} 30. Rec2 {[%emt 0:01:46]} Nxd5 {[%emt 0:00:40]} 31. Rc7 {[%emt 0:00:16]} Ne7 {[%emt 0:01:37]} 32. Bc5 {[%emt 0:00:16]} Qa5 {[%emt 0:10:21]} 33. Bxe7 {[%emt 0:01:14]} Qxe5 {[%emt 0:01:41]} 34. Bf6 {[%emt 0:00:06]} Qxf6 {[%emt 0:00:35]} 35. Qxh7+ {[%emt 0:00:44]} Kf8 {[%emt 0:00:01]} 36. Qh6+ {[%emt 0:00:44]} Kg8 {[%emt 0:00:10]} 37. Rd7 {[%emt 0:02:13]} a2 {[%emt 0:02:59]} 38. Qh7+ {[%emt 0:00:05]} Kf8 {[%emt 0:00:13]} 39. Qh6+ {[%emt 0:00:35]} Kg8 {[%emt 0:00:05]} 40. Rcc7 {[%emt 0:00:55]} a1=Q+ {[%emt 0:00:20]} 41. Kh2 {[%emt 0:00:13]} Qae5+ {[%emt 0:00:32]} 42. f4 {[%emt 0:00:17]} Qxc7 {[%emt 0:09:51]} 43. Qh7+ {[%emt 0:00:08]} Kf8 {[%emt 0:00:10]} 44. Qh6+ {[%emt 0:00:13]} Kg8 {[%emt 0:00:19]} 45. Qh7+ {[%emt 0:00:07]} 1/2-1/2

[Event "Kragero Resort B 2020"]
[Site "Kragero"]
[Date "2020.02.20"]
[Round "4.6"]
[White "Austad, Eirik"]
[Black "Lystad, Maximilian L"]
[Result "1/2-1/2"]
[ECO "A36"]
[WhiteElo "1796"]
[BlackElo "1710"]
[Annotator "NA"]
[PlyCount "50"]
[EventDate "2020.02.19"]
[EventType "swiss"]
[EventCountry "NOR"]
[SourceTitle "playchess.com"]
[Source "ChessBase"]
[SourceQuality "1"]
[TimeControl "5400+30"]

1. c4 {[%emt 0:00:41]} c5 {[%emt 0:00:00]} 2. Nc3 {[%emt 0:00:09]} g6 {[%emt 0:00:00]} 3. g3 {[%emt 0:00:18]} Nc6 {[%emt 0:00:00]} 4. Bg2 {[%emt 0:00:04]} Bg7 {[%emt 0:00:00]} 5. a3 {[%emt 0:00:03]} a5 {[%emt 0:05:28]} 6. d3 {[%emt 0:01:22]} e6 {[%emt 0:01:34]} 7. Nf3 {[%emt 0:07:55]} Nge7 {[%emt 0:00:08]} 8. O-O {[%emt 0:01:58]} O-O {[%emt 0:02:16]} 9. Bd2 {[%emt 0:03:54]} b6 {[%emt 0:04:10]} 10. Rb1 {[%emt 0:01:41]} Bb7 {[%emt 0:00:07]} 11. Na4 {[%emt 0:02:18]} d5 {[%emt 0:04:39]} 12. Qb3 {[%emt 0:11:15]} Ra6 {[%emt 0:07:11]} 13. cxd5 {[%emt 0:08:34]} Nxd5 {[%emt 0:01:16]} 14. Bc3 {[%emt 0:11:28]} Nd4 {[%emt 0:05:13]} 15. Bxd4 {[%emt 0:02:07]} cxd4 {[%emt 0:00:01]} 16. Nc5 {[%emt 0:15:41]} bxc5 {[%emt 0:03:29]} 17. Qxb7 {[%emt 0:00:07]} Qb6 {[%emt 0:00:05]} 18. Qxb6 {[%emt 0:00:26]} Rxb6 {[%emt 0:00:02]} 19. Nd2 {[%emt 0:01:24]} Rfb8 {[%emt 0:06:58]} 20. Nc4 {[%emt 0:02:20]} Ra6 {[%emt 0:03:50]} 21. Rbc1 {[%emt 0:01:53]} Bf8 {[%emt 0:01:38]} 22. Rc2 {[%emt 0:01:14]} Nb6 {[%emt 0:00:51]} 23. Nd2 {[%emt 0:04:46]} Na4 {[%emt 0:02:16]} 24. Nc4 {[%emt 0:00:21]} Nb6 {[%emt 0:01:45]} 25. Nd2 {[%emt 0:00:07]} Na4 {[%emt 0:00:05]} 1/2-1/2

[Event "Kragero Resort B 2020"]
[Site "Kragero"]
[Date "2020.02.20"]
[Round "4.7"]
[White "Omtvedt, Per"]
[Black "Shehzad, Alisha"]
[Result "1/2-1/2"]
[ECO "B26"]
[WhiteElo "1894"]
[BlackElo "1705"]
[Annotator "NA RC"]
[PlyCount "94"]
[EventDate "2020.02.19"]
[EventType "swiss"]
[EventCountry "NOR"]
[SourceTitle "playchess.com"]
[Source "ChessBase"]
[SourceQuality "1"]
[TimeControl "5400+30"]

1. e4 {[%emt 0:00:00]} c5 {[%emt 0:01:31]} 2. Nc3 {[%emt 0:00:00]} Nc6 {[%emt 0:00:11]} 3. g3 {[%emt 0:00:00]} g6 {[%emt 0:00:33]} 4. Bg2 {[%emt 0:00:00]} Bg7 {[%emt 0:00:10]} 5. d3 {[%emt 0:00:06]} d6 {[%emt 0:00:20]} 6. Be3 {[%emt 0:00:12]} a6 {[%emt 0:01:06]} 7. Qd2 {[%emt 0:00:21]} e6 {[%emt 0:00:48]} 8. Nge2 {[%emt 0:01:49]} Nge7 {[%emt 0:01:42]} 9. Bh6 {[%emt 0:00:50]} O-O {[%emt 0:01:23]} 10. h4 {[%emt 0:00:31]} f6 {[%emt 0:04:40]} 11. Bxg7 {[%emt 0:02:06]} Kxg7 {[%emt 0:00:10]} 12. h5 {[%emt 0:00:24]} g5 {[%emt 0:03:29]} 13. f4 {[%emt 0:01:06]} g4 {[%emt 0:02:10]} 14. O-O-O {[%emt 0:04:18]} e5 {[%emt 0:06:58]} 15. Rdf1 {[%emt 0:07:48]} b5 {[%emt 0:08:45]} 16. Kb1 {[%emt 0:10:28]} Nd4 {[%emt 0:04:36]} 17. Nxd4 {[%emt 0:02:23]} cxd4 {[%emt 0:00:37]} 18. Ne2 {[%emt 0:00:24]} Nc6 {[%emt 0:03:54]} 19. Rh4 {[%emt 0:01:57]} Kh8 {[%emt 0:02:59]} 20. f5 {[%emt 0:03:39]} Rg8 {[%emt 0:00:58]} 21. Nc1 {[%emt 0:00:40]} Rg5 {[%emt 0:04:31]} 22. Qe2 {[%emt 0:01:10]} Qg8 {[%emt 0:00:53]} 23. h6 {[%emt 0:07:18]} Bd7 {[%emt 0:03:06]} 24. Rf2 {[%emt 0:01:09]} Rc8 {[%emt 0:01:09]} 25. Bf1 {[%emt 0:04:21]} Be8 {[%emt 0:08:39]} 26. Qd1 {[%emt 0:03:19]} Bf7 {[%emt 0:01:46]} 27. a3 {[%emt 0:06:04]} b4 {[%emt 0:03:52]} 28. a4 {[%emt 0:00:41]} Na5 {[%emt 0:02:35]} 29. Qd2 {[%emt 0:03:04]} Nc6 {[%emt 0:00:55]} 30. b3 {[%emt 0:01:03]} a5 {[%emt 0:04:32]} 31. Be2 {[%emt 0:03:40]} Nb8 {[%emt 0:04:31]} 32. Bd1 {[%emt 0:00:22]} Na6 {[%emt 0:00:28]} 33. Qe2 {[%emt 0:00:21]} Nc5 {[%emt 0:00:54]} 34. Rfh2 {[%emt 0:01:22]} d5 {[%emt 0:04:16]} 35. exd5 {[%emt 0:01:18]} Bxd5 {[%emt 0:00:25]} 36. Rxg4 {[%emt 0:00:25]} Rxg4 {[%emt 0:01:12]} 37. Qxg4 {[%emt 0:00:25]} Qxg4 {[%emt 0:00:14]} 38. Bxg4 {[%emt 0:00:17]} Rg8 {[%emt 0:00:11]} 39. Rh4 {[%emt 0:00:36]} Rg5 {[%emt 0:01:38]} 40. Ne2 {[%emt 0:00:42]} Bc6 {[%emt 0:01:50]} 41. Ng1 {[%emt 0:02:19]} Nb7 {[%emt 0:01:47]} 42. Nh3 {[%emt 0:00:37]} Rg8 {[%emt 0:00:36]} 43. Kc1 {[%emt 0:03:47]} Nd6 {[%emt 0:00:30]} 44. Nf2 {[%emt 0:01:05]} Rg5 {[%emt 0:01:20]} 45. Nh3 {[%emt 0:02:01]} Rg8 {[%emt 0:00:21]} 46. Nf2 {[%emt 0:00:36]} Rg5 {[%emt 0:00:31]} 47. Nh3 {[%emt 0:00:54]} Rg8 {[%emt 0:00:19]} 1/2-1/2

[Event "Kragero Resort B 2020"]
[Site "Kragero"]
[Date "2020.02.20"]
[Round "4.8"]
[White "Olsen, William Alexander"]
[Black "Johannessen, Martin T."]
[Result "1-0"]
[ECO "B23"]
[WhiteElo "1862"]
[BlackElo "1663"]
[Annotator "NA RC"]
[PlyCount "63"]
[EventDate "2020.02.19"]
[EventType "swiss"]
[EventCountry "NOR"]
[SourceTitle "playchess.com"]
[Source "ChessBase"]
[SourceQuality "1"]
[TimeControl "5400+30"]

1. e4 {[%emt 0:00:00]} c5 {[%emt 0:00:00]} 2. Nc3 {[%emt 0:00:00]} d6 {[%emt 0:00:00]} 3. f4 {[%emt 0:00:00]} Nc6 {[%emt 0:00:23]} 4. Nf3 {[%emt 0:00:00]} Nf6 {[%emt 0:01:29]} 5. Bb5 {[%emt 0:00:10]} Bd7 {[%emt 0:00:30]} 6. O-O {[%emt 0:00:29]} Qb6 {[%emt 0:03:39]} 7. d3 {[%emt 0:03:17]} e6 {[%emt 0:09:41]} 8. a4 {[%emt 0:03:43]} a6 {[%emt 0:10:28]} 9. Bxc6 {[%emt 0:03:04]} Bxc6 {[%emt 0:00:44]} 10. a5 {[%emt 0:00:48]} Qc7 {[%emt 0:01:34]} 11. e5 {[%emt 0:08:46]} Nd5 {[%emt 0:04:36]} 12. Nxd5 {[%emt 0:09:00]} Bxd5 {[%emt 0:02:48]} 13. Qe2 {[%emt 0:03:44]} Bxf3 {[%emt 0:16:49]} 14. Qxf3 {[%emt 0:02:08]} d5 {[%emt 0:01:25]} 15. f5 {[%emt 0:06:31]} O-O-O {[%emt 0:03:26]} 16. Re1 {[%emt 0:06:53]} Be7 {[%emt 0:01:48]} 17. Bd2 {[%emt 0:01:40]} h6 {[%emt 0:01:31]} 18. Qg4 {[%emt 0:03:24]} Qd7 {[%emt 0:06:35]} 19. Qxg7 {[%emt 0:05:24]} Bh4 {[%emt 0:01:09]} 20. fxe6 {[%emt 0:02:59]} Qxe6 {[%emt 0:00:42]} 21. Rf1 {[%emt 0:00:19]} Rdf8 {[%emt 0:05:18]} 22. Kh1 {[%emt 0:10:52]} Rhg8 {[%emt 0:05:28]} 23. Qh7 {[%emt 0:12:01]} Rg6 {[%emt 0:01:50]} 24. Be1 {[%emt 0:01:26]} Qg4 {[%emt 0:03:46]} 25. g3 {[%emt 0:03:26]} Qe6 {[%emt 0:13:11]} 26. gxh4 {[%emt 0:03:00]} d4 {[%emt 0:00:45]} 27. Bg3 {[%emt 0:02:05]} Qd5+ {[%emt 0:00:52]} 28. Kg1 {[%emt 0:00:05]} Qxe5 {[%emt 0:01:21]} 29. Qxg6 {[%emt 0:00:52]} Qe3+ {[%emt 0:01:44]} 30. Bf2 {[%emt 0:00:06]} Qh3 {[%emt 0:00:31]} 31. Qg2 {[%emt 0:00:41]} Qe6 {[%emt 0:00:07]} 32. Bg3 {[%emt 0:00:13]} 1-0

[Event "Kragero Resort B 2020"]
[Site "Kragero"]
[Date "2020.02.20"]
[Round "4.9"]
[White "Halvorsen, Benjamin"]
[Black "Sivertsen, Jarle"]
[Result "1-0"]
[ECO "B30"]
[WhiteElo "1861"]
[BlackElo "1606"]
[Annotator "NA RC"]
[PlyCount "117"]
[EventDate "2020.02.19"]
[EventType "swiss"]
[EventCountry "NOR"]
[SourceTitle "playchess.com"]
[Source "ChessBase"]
[SourceQuality "1"]
[TimeControl "5400+30"]

1. e4 {[%emt 0:00:00]} c5 {[%emt 0:00:00]} 2. Nf3 {[%emt 0:00:00]} Nc6 {[%emt 0:00:00]} 3. g3 {[%emt 0:01:04]} e5 {[%emt 0:00:07]} 4. Bg2 {[%emt 0:00:05]} Nf6 {[%emt 0:00:42]} 5. Qe2 {[%emt 0:00:07]} d6 {[%emt 0:01:15]} 6. O-O {[%emt 0:00:56]} Bg4 {[%emt 0:01:28]} 7. c3 {[%emt 0:00:20]} h5 {[%emt 0:02:42]} 8. h3 {[%emt 0:05:56]} Bxf3 {[%emt 0:03:52]} 9. Bxf3 {[%emt 0:00:15]} Qd7 {[%emt 0:00:38]} 10. Bg2 {[%emt 0:00:29]} O-O-O {[%emt 0:02:59]} 11. Na3 {[%emt 0:03:09]} Be7 {[%emt 0:01:29]} 12. Rb1 {[%emt 0:04:39]} Qe6 {[%emt 0:03:53]} 13. c4 {[%emt 0:18:39]} Nd4 {[%emt 0:10:37]} 14. Qd1 {[%emt 0:00:21]} Nd7 {[%emt 0:07:02]} 15. b4 {[%emt 0:05:44]} Nb6 {[%emt 0:07:06]} 16. d3 {[%emt 0:01:31]} g5 {[%emt 0:01:25]} 17. Nc2 {[%emt 0:05:55]} Qd7 {[%emt 0:09:36]} 18. Nxd4 {[%emt 0:03:36]} cxd4 {[%emt 0:02:35]} 19. b5 {[%emt 0:01:55]} Qc7 {[%emt 0:02:22]} 20. a4 {[%emt 0:01:20]} Nd7 {[%emt 0:00:58]} 21. Bd2 {[%emt 0:01:12]} Nc5 {[%emt 0:01:13]} 22. Qc2 {[%emt 0:00:52]} Kd7 {[%emt 0:02:41]} 23. a5 {[%emt 0:02:19]} b6 {[%emt 0:00:51]} 24. Ra1 {[%emt 0:03:23]} Ra8 {[%emt 0:01:00]} 25. Ra3 {[%emt 0:02:03]} Ke6 {[%emt 0:08:36]} 26. Rfa1 {[%emt 0:02:00]} a6 {[%emt 0:03:24]} 27. axb6 {[%emt 0:01:02]} Qxb6 {[%emt 0:00:46]} 28. Qa2 {[%emt 0:00:26]} Rhb8 {[%emt 0:01:45]} 29. Bb4 {[%emt 0:02:34]} Ra7 {[%emt 0:05:05]} 30. Bxc5 {[%emt 0:02:23]} dxc5 {[%emt 0:00:06]} 31. Rxa6 {[%emt 0:00:48]} Rxa6 {[%emt 0:00:22]} 32. Qxa6 {[%emt 0:00:18]} Bd8 {[%emt 0:00:58]} 33. Bf3 {[%emt 0:02:33]} h4 {[%emt 0:01:15]} 34. gxh4 {[%emt 0:01:33]} gxh4 {[%emt 0:00:09]} 35. Bg4+ {[%emt 0:01:54]} Kf6 {[%emt 0:00:25]} 36. Bf5 {[%emt 0:05:00]} Bc7 {[%emt 0:00:34]} 37. Kg2 {[%emt 0:02:50]} Rg8+ {[%emt 0:03:45]} 38. Kf3 {[%emt 0:01:26]} Ke7 {[%emt 0:00:51]} 39. Qxb6 {[%emt 0:00:19]} Bxb6 {[%emt 0:00:07]} 40. Ra6 {[%emt 0:00:05]} Bc7 {[%emt 0:00:29]} 41. Rh6 {[%emt 0:00:20]} Ba5 {[%emt 0:00:47]} 42. Rxh4 {[%emt 0:00:17]} Bd2 {[%emt 0:01:31]} 43. Rg4 {[%emt 0:01:56]} Ra8 {[%emt 0:00:58]} 44. h4 {[%emt 0:00:41]} Ra3 {[%emt 0:00:12]} 45. Rg8 {[%emt 0:01:31]} Bf4 {[%emt 0:00:28]} 46. Ke2 {[%emt 0:01:05]} Ra2+ {[%emt 0:00:14]} 47. Kf1 {[%emt 0:00:05]} Rd2 {[%emt 0:00:36]} 48. b6 {[%emt 0:00:14]} Rb2 {[%emt 0:01:53]} 49. Rb8 {[%emt 0:00:10]} Kf6 {[%emt 0:00:27]} 50. b7 {[%emt 0:00:17]} Bh6 {[%emt 0:02:31]} 51. Bc8 {[%emt 0:00:06]} Bf8 {[%emt 0:00:09]} 52. Ra8 {[%emt 0:00:11]} Bd6 {[%emt 0:00:12]} 53. Ra6 {[%emt 0:00:41]} Ke7 {[%emt 0:00:27]} 54. h5 {[%emt 0:00:20]} f5 {[%emt 0:00:53]} 55. h6 {[%emt 0:01:16]} fxe4 {[%emt 0:00:21]} 56. h7 {[%emt 0:00:10]} exd3 {[%emt 0:01:01]} 57. h8=Q {[%emt 0:00:05]} d2 {[%emt 0:00:22]} 58. Qg7+ {[%emt 0:00:01]} Kd8 {[%emt 0:00:08]} 59. Qd7# {[%emt 0:00:02]} 1-0

[Event "Kragero Resort B 2020"]
[Site "Kragero"]
[Date "2020.02.20"]
[Round "4.10"]
[White "Amundsen, Ask"]
[Black "Hausken, Andreas Skrede"]
[Result "0-1"]
[ECO "B45"]
[WhiteElo "1707"]
[BlackElo "1856"]
[Annotator "NA RC"]
[PlyCount "82"]
[EventDate "2020.02.19"]
[EventType "swiss"]
[EventCountry "NOR"]
[SourceTitle "playchess.com"]
[Source "ChessBase"]
[SourceQuality "1"]
[TimeControl "5400+30"]

1. e4 {[%emt 0:00:00]} c5 {[%emt 0:00:00]} 2. Nf3 {[%emt 0:00:00]} e6 {[%emt 0:00:00]} 3. d4 {[%emt 0:00:00]} cxd4 {[%emt 0:00:00]} 4. Nxd4 {[%emt 0:00:00]} Nc6 {[%emt 0:00:00]} 5. Be3 {[%emt 0:01:56]} Nf6 {[%emt 0:01:16]} 6. Nc3 {[%emt 0:00:15]} Bb4 {[%emt 0:02:45]} 7. Bd3 {[%emt 0:03:22]} O-O {[%emt 0:15:04]} 8. O-O {[%emt 0:00:20]} Ne5 {[%emt 0:01:17]} 9. Bg5 {[%emt 0:20:33]} Nxd3 {[%emt 0:02:59]} 10. Qxd3 {[%emt 0:01:53]} h6 {[%emt 0:01:01]} 11. Bh4 {[%emt 0:00:42]} d6 {[%emt 0:02:49]} 12. f4 {[%emt 0:02:08]} Bxc3 {[%emt 0:10:04]} 13. bxc3 {[%emt 0:00:55]} e5 {[%emt 0:02:39]} 14. fxe5 {[%emt 0:22:26]} dxe5 {[%emt 0:00:08]} 15. Nf5 {[%emt 0:00:38]} Qb6+ {[%emt 0:07:34]} 16. Bf2 {[%emt 0:06:08]} Qc7 {[%emt 0:01:10]} 17. Qg3 {[%emt 0:09:46]} Bxf5 {[%emt 0:06:28]} 18. exf5 {[%emt 0:00:09]} Ne4 {[%emt 0:00:29]} 19. Qg4 {[%emt 0:09:27]} Nxf2 {[%emt 0:01:05]} 20. Rxf2 {[%emt 0:00:09]} Qxc3 {[%emt 0:00:28]} 21. Raf1 {[%emt 0:00:21]} f6 {[%emt 0:00:10]} 22. Rf3 {[%emt 0:02:18]} Qxc2 {[%emt 0:01:03]} 23. Rg3 {[%emt 0:00:58]} Rf7 {[%emt 0:00:07]} 24. Qg6 {[%emt 0:00:43]} Qd2 {[%emt 0:01:29]} 25. Rf2 {[%emt 0:03:38]} Qd1+ {[%emt 0:00:03]} 26. Rf1 {[%emt 0:00:17]} Qd4+ {[%emt 0:00:03]} 27. Kh1 {[%emt 0:00:21]} Kf8 {[%emt 0:00:35]} 28. Qh7 {[%emt 0:00:56]} Rd8 {[%emt 0:01:12]} 29. h3 {[%emt 0:01:43]} Qc4 {[%emt 0:00:32]} 30. Rb1 {[%emt 0:01:05]} b6 {[%emt 0:00:29]} 31. Rg6 {[%emt 0:03:24]} Qc2 {[%emt 0:01:51]} 32. Rf1 {[%emt 0:01:09]} Qxa2 {[%emt 0:00:28]} 33. Rc1 {[%emt 0:01:08]} Qd2 {[%emt 0:01:17]} 34. Qh8+ {[%emt 0:05:05]} Ke7 {[%emt 0:00:04]} 35. Rc7+ {[%emt 0:00:09]} Rd7 {[%emt 0:00:09]} 36. Rc8 {[%emt 0:02:08]} Kd6 {[%emt 0:01:49]} 37. Ra8 {[%emt 0:01:46]} Qc1+ {[%emt 0:00:16]} 38. Kh2 {[%emt 0:00:13]} Qf4+ {[%emt 0:00:01]} 39. Kh1 {[%emt 0:00:14]} Kc5 {[%emt 0:00:08]} 40. Rc8+ {[%emt 0:00:37]} Kb5 {[%emt 0:00:20]} 41. Qe8 {[%emt 0:00:53]} Rfe7 {[%emt 0:00:03]} 0-1

[Event "Kragero Resort B 2020"]
[Site "Kragero"]
[Date "2020.02.20"]
[Round "4.11"]
[White "Skaslien, Ingrid"]
[Black "Kveim, Ingvar Torjesen"]
[Result "1-0"]
[ECO "A73"]
[WhiteElo "1847"]
[BlackElo "1584"]
[Annotator "NA RC"]
[PlyCount "77"]
[EventDate "2020.02.19"]
[EventType "swiss"]
[EventCountry "NOR"]
[SourceTitle "playchess.com"]
[Source "ChessBase"]
[SourceQuality "1"]
[TimeControl "5400+30"]

1. d4 {[%emt 0:00:00]} Nf6 {[%emt 0:00:00]} 2. c4 {[%emt 0:00:00]} c5 {[%emt 0:00:00]} 3. d5 {[%emt 0:00:00]} e6 {[%emt 0:00:00]} 4. Nc3 {[%emt 0:00:03]} exd5 {[%emt 0:00:00]} 5. cxd5 {[%emt 0:00:07]} d6 {[%emt 0:00:00]} 6. e4 {[%emt 0:00:32]} g6 {[%emt 0:00:00]} 7. Be2 {[%emt 0:00:46]} Bg7 {[%emt 0:00:04]} 8. Nf3 {[%emt 0:00:18]} O-O {[%emt 0:00:11]} 9. O-O {[%emt 0:00:35]} Bg4 {[%emt 0:03:59]} 10. Nd2 {[%emt 0:01:08]} Bxe2 {[%emt 0:01:41]} 11. Qxe2 {[%emt 0:00:11]} Nbd7 {[%emt 0:02:15]} 12. Re1 {[%emt 0:10:43]} Re8 {[%emt 0:02:10]} 13. Nc4 {[%emt 0:10:05]} Nb6 {[%emt 0:04:49]} 14. Bg5 {[%emt 0:02:53]} h6 {[%emt 0:13:24]} 15. Bh4 {[%emt 0:01:20]} Nxc4 {[%emt 0:04:12]} 16. Qxc4 {[%emt 0:00:19]} g5 {[%emt 0:05:14]} 17. Bg3 {[%emt 0:00:26]} Nh5 {[%emt 0:01:45]} 18. Ne2 {[%emt 0:03:11]} Qd7 {[%emt 0:03:27]} 19. Qc2 {[%emt 0:04:36]} b5 {[%emt 0:01:46]} 20. h3 {[%emt 0:04:25]} Nxg3 {[%emt 0:00:29]} 21. Nxg3 {[%emt 0:00:12]} a5 {[%emt 0:11:33]} 22. Nf5 {[%emt 0:05:22]} b4 {[%emt 0:04:14]} 23. Qe2 {[%emt 0:03:36]} Kh7 {[%emt 0:12:23]} 24. Rad1 {[%emt 0:07:52]} a4 {[%emt 0:03:57]} 25. h4 {[%emt 0:04:49]} f6 {[%emt 0:04:01]} 26. Rd3 {[%emt 0:09:12]} Re5 {[%emt 0:01:53]} 27. Re3 {[%emt 0:04:21]} Rd8 {[%emt 0:01:52]} 28. Qg4 {[%emt 0:02:12]} Qf7 {[%emt 0:02:00]} 29. Qd1 {[%emt 0:01:47]} Qd7 {[%emt 0:01:55]} 30. Qd3 {[%emt 0:03:01]} Qb7 {[%emt 0:00:37]} 31. Rg3 {[%emt 0:00:25]} Bf8 {[%emt 0:02:03]} 32. Qd1 {[%emt 0:02:30]} Rde8 {[%emt 0:01:25]} 33. Ree3 {[%emt 0:00:20]} Qb5 {[%emt 0:01:03]} 34. Qh5 {[%emt 0:01:50]} Qc4 {[%emt 0:02:37]} 35. Qf7+ {[%emt 0:00:47]} Kh8 {[%emt 0:00:15]} 36. Qxf6+ {[%emt 0:00:09]} Kg8 {[%emt 0:01:56]} 37. hxg5 {[%emt 0:01:42]} Rxe4 {[%emt 0:02:36]} 38. Nxh6+ {[%emt 0:01:18]} Kh7 {[%emt 0:00:28]} 39. g6+ {[%emt 0:00:45]} 1-0

[Event "Kragero Resort B 2020"]
[Site "Kragero"]
[Date "2020.02.20"]
[Round "4.12"]
[White "Briem, Hedinn"]
[Black "Skogli, Paal"]
[Result "0-1"]
[ECO "D10"]
[WhiteElo "1672"]
[BlackElo "1801"]
[Annotator "NA RC"]
[PlyCount "48"]
[EventDate "2020.02.19"]
[EventType "swiss"]
[EventCountry "NOR"]
[SourceTitle "playchess.com"]
[Source "ChessBase"]
[SourceQuality "1"]
[TimeControl "5400+30"]

1. d4 {[%emt 0:00:00]} d5 {[%emt 0:04:31]} 2. c4 {[%emt 0:00:12]} c6 {[%emt 0:00:11]} 3. cxd5 {[%emt 0:00:32]} cxd5 {[%emt 0:00:02]} 4. Bf4 {[%emt 0:00:38]} Nf6 {[%emt 0:01:06]} 5. e3 {[%emt 0:02:10]} e6 {[%emt 0:01:17]} 6. Nf3 {[%emt 0:02:48]} Bb4+ {[%emt 0:00:20]} 7. Nbd2 {[%emt 0:01:32]} O-O {[%emt 0:01:02]} 8. Bd3 {[%emt 0:01:21]} Nc6 {[%emt 0:01:28]} 9. a3 {[%emt 0:04:16]} Bd6 {[%emt 0:07:24]} 10. O-O {[%emt 0:20:32]} Bxf4 {[%emt 0:02:56]} 11. exf4 {[%emt 0:00:07]} Qd6 {[%emt 0:01:01]} 12. g3 {[%emt 0:01:09]} b6 {[%emt 0:02:56]} 13. b4 {[%emt 0:04:21]} Bb7 {[%emt 0:00:34]} 14. Re1 {[%emt 0:04:55]} a5 {[%emt 0:07:32]} 15. b5 {[%emt 0:03:31]} Ne7 {[%emt 0:00:02]} 16. Ne5 {[%emt 0:03:25]} Rac8 {[%emt 0:00:32]} 17. g4 {[%emt 0:10:46]} Ng6 {[%emt 0:03:27]} 18. Qf3 {[%emt 0:05:12]} Rc3 {[%emt 0:08:46]} 19. a4 {[%emt 0:11:21]} Ne4 {[%emt 0:01:10]} 20. Nf1 {[%emt 0:11:01]} Rfc8 {[%emt 0:10:30]} 21. Ne3 {[%emt 0:08:04]} Qb4 {[%emt 0:06:39]} 22. Nc2 {[%emt 0:02:32]} Rxc2 {[%emt 0:01:41]} 23. Bxc2 {[%emt 0:00:07]} Rxc2 {[%emt 0:00:04]} 24. Nd3 {[%emt 0:00:53]} Qxd4 {[%emt 0:00:45]} 0-1

[Event "Kragero Resort B 2020"]
[Site "Kragero"]
[Date "2020.02.21"]
[Round "5.1"]
[White "Leonhardsen, Vebjorn Maanum"]
[Black "Seo, Jung Hyun"]
[Result "1/2-1/2"]
[ECO "D36"]
[WhiteElo "1845"]
[BlackElo "1816"]
[Annotator "NA"]
[PlyCount "50"]
[EventDate "2020.02.19"]
[EventType "swiss"]
[EventCountry "NOR"]
[SourceTitle "playchess.com"]
[Source "ChessBase"]
[SourceQuality "1"]
[TimeControl "5400+30"]

1. d4 {[%emt 0:03:27]} d5 {[%emt 0:00:00]} 2. c4 {[%emt 0:00:13]} e6 {[%emt 0:00:00]} 3. Nc3 {[%emt 0:00:14]} Nf6 {[%emt 0:00:00]} 4. Bg5 {[%emt 0:00:58]} Be7 {[%emt 0:00:00]} 5. e3 {[%emt 0:00:07]} Nbd7 {[%emt 0:00:16]} 6. Nf3 {[%emt 0:00:30]} h6 {[%emt 0:00:05]} 7. Bh4 {[%emt 0:00:06]} O-O {[%emt 0:00:13]} 8. cxd5 {[%emt 0:00:37]} exd5 {[%emt 0:00:10]} 9. Bd3 {[%emt 0:00:07]} c6 {[%emt 0:00:06]} 10. O-O {[%emt 0:00:08]} Ne4 {[%emt 0:03:27]} 11. Bxe7 {[%emt 0:00:43]} Qxe7 {[%emt 0:00:03]} 12. Qc2 {[%emt 0:00:33]} Re8 {[%emt 0:02:18]} 13. Rab1 {[%emt 0:01:24]} a5 {[%emt 0:02:55]} 14. a3 {[%emt 0:01:12]} Nd6 {[%emt 0:12:45]} 15. Rfe1 {[%emt 0:04:21]} Nb6 {[%emt 0:12:44]} 16. e4 {[%emt 0:14:25]} dxe4 {[%emt 0:02:57]} 17. Nxe4 {[%emt 0:00:09]} Nxe4 {[%emt 0:01:02]} 18. Bxe4 {[%emt 0:00:07]} Be6 {[%emt 0:01:45]} 19. Bf5 {[%emt 0:13:34]} Bxf5 {[%emt 0:05:34]} 20. Qxf5 {[%emt 0:00:09]} Qd7 {[%emt 0:00:16]} 21. Qxd7 {[%emt 0:20:18]} Nxd7 {[%emt 0:00:05]} 22. b4 {[%emt 0:00:27]} Rxe1+ {[%emt 0:00:50]} 23. Rxe1 {[%emt 0:00:19]} axb4 {[%emt 0:01:04]} 24. axb4 {[%emt 0:00:07]} Kf8 {[%emt 0:01:00]} 25. Kf1 {[%emt 0:01:17]} Ra2 {[%emt 0:01:09]} 1/2-1/2